bitfinex/quotes_BTCUSD_20241211
["timestamp","ask_amount","ask_price","bid_price","bid_amount"]
[1733899228688,1.05028187,97782.0,97781.0,0.07647997]
[1733899228853,0.95837151,97782.0,97781.0,0.07647997]
[1733899229256,1.41070322,97782.0,97781.0,0.07647997]
[1733899229598,1.65806036,97782.0,97781.0,0.07647997]
[1733899229887,1.78294196,97782.0,97781.0,0.07647997]
[1733899230231,1.55295707,97782.0,97781.0,0.07647997]
[1733899230613,1.78262262,97782.0,97781.0,0.06620117]
[1733899230805,2.33540376,97782.0,97781.0,0.03420996]
[1733899231014,2.1855868,97782.0,97781.0,0.03420996]
[1733899231225,1.98625126,97782.0,97781.0,0.03420996]
[1733899231862,1.71065062,97782.0,97781.0,0.03420996]
[1733899232265,1.71255806,97782.0,97781.0,0.03520996]
[1733899233254,1.6918068,97782.0,97781.0,0.03520996]
[1733899233458,1.58670351,97782.0,97781.0,0.03520996]
[1733899233817,1.58470351,97782.0,97781.0,0.03420996]
[1733899234030,1.58670351,97782.0,97781.0,0.03520996]
[1733899234228,1.58670351,97782.0,97781.0,0.03420996]
[1733899234229,1.58470351,97782.0,97781.0,0.03420996]
[1733899234438,1.6898068,97782.0,97781.0,0.03420996]
[1733899234648,1.65990709,97782.0,97781.0,0.03520996]
[1733899234846,1.66190709,97782.0,97781.0,0.03520996]
[1733899235181,1.65990709,97782.0,97781.0,0.03520996]
[1733899235505,1.6917553,97782.0,97781.0,0.03420996]
[1733899235933,1.6897553,97782.0,97781.0,0.03420996]
[1733899236315,1.96706827,97782.0,97781.0,0.03420996]
[1733899236717,1.6917553,97782.0,97781.0,0.03420996]
[1733899236920,1.96906174,97782.0,97781.0,0.03520996]
[1733899237264,1.65990709,97782.0,97781.0,0.03420996]
[1733899237465,1.69374358,97782.0,97781.0,0.03520996]
[1733899237675,1.65033862,97782.0,97781.0,0.03520996]
[1733899237881,1.65888726,97782.0,97781.0,0.03420996]
[1733899238082,1.66088726,97782.0,97781.0,0.03520996]
[1733899238287,1.65988726,97782.0,97781.0,0.03520996]
[1733899238465,1.65788726,97782.0,97781.0,0.03420996]
[1733899238700,0.89236147,97781.0,97780.0,5.6e-07]
[1733899238895,1.45145126,97781.0,97780.0,5.6e-07]
[1733899240591,1.34634797,97781.0,97780.0,5.6e-07]
[1733899241030,1.34634671,97781.0,97780.0,5.6e-07]
[1733899241247,1.34834671,97781.0,97780.0,0.00100056]
[1733899241466,1.53767707,97781.0,97780.0,0.00100056]
[1733899241678,1.53567707,97781.0,97780.0,5.6e-07]
[1733899241883,1.34834671,97781.0,97780.0,5.6e-07]
[1733899242105,0.59110147,97771.0,97770.0,0.0001714]
[1733899242316,1.20683309,97771.0,97770.0,0.0001714]
[1733899244298,1.20683581,97771.0,97770.0,0.0001714]
[1733899244935,1.21083581,97771.0,97770.0,0.0001714]
[1733899245353,1.21283581,97771.0,97770.0,0.0001714]
[1733899245561,1.20883581,97771.0,97770.0,0.0001714]
[1733899245821,1.20683581,97771.0,97770.0,0.0001714]
[1733899246023,1.21283581,97771.0,97770.0,0.0001714]
[1733899246239,1.20883581,97771.0,97770.0,0.0001714]
[1733899246453,0.95351057,97771.0,97770.0,0.0001714]
[1733899246664,0.80921057,97771.0,97770.0,0.0001714]
[1733899247341,0.80721057,97771.0,97770.0,0.0001714]
[1733899247579,0.81850893,97771.0,97770.0,0.0001714]
[1733899247801,0.81650893,97771.0,97770.0,0.0001714]
[1733899248012,0.83850893,97771.0,97770.0,0.0001714]
[1733899248228,0.69050893,97771.0,97770.0,0.0001714]
[1733899248457,0.68850893,97771.0,97770.0,0.0001714]
[1733899248669,0.52821057,97771.0,97770.0,0.0001714]
[1733899249504,0.52821057,97771.0,97770.0,0.0021714]
[1733899249719,0.52821057,97771.0,97770.0,0.0001714]
[1733899250753,0.5282264,97771.0,97770.0,0.0011714]
[1733899251195,0.5282264,97771.0,97770.0,0.0041714]
[1733899251637,0.5282264,97771.0,97770.0,0.0011714]
[1733899251847,0.5282264,97771.0,97770.0,0.0041714]
[1733899252504,0.5282264,97771.0,97770.0,0.0031714]
[1733899253143,0.5282264,97771.0,97770.0,0.0001714]
[1733899254013,0.52822822,97771.0,97770.0,0.0001714]
[1733899254222,0.52822822,97771.0,97770.0,0.0011714]
[1733899254423,0.52822822,97771.0,97770.0,0.0051714]
[1733899254625,0.52822822,97771.0,97770.0,0.0041714]
[1733899254873,0.5280927,97771.0,97770.0,0.0021714]
[1733899255098,0.5280927,97771.0,97770.0,0.0061714]
[1733899256810,0.6054927,97771.0,97770.0,0.0061714]
[1733899257856,0.6054927,97771.0,97770.0,0.00563853]
[1733899260055,0.6054927,97771.0,97770.0,0.004]
[1733899260268,0.6054927,97771.0,97770.0,0.005]
[1733899260902,0.6054927,97771.0,97770.0,0.001]
[1733899261349,0.6054927,97771.0,97770.0,0.004]
[1733899261968,0.5280927,97771.0,97770.0,0.004]
[1733899262380,0.5280927,97771.0,97770.0,0.0041716]
[1733899265645,0.7563927,97771.0,97770.0,0.0041716]
[1733899266655,0.89383006,97771.0,97770.0,0.0041716]
[1733899267067,0.89383006,97771.0,97770.0,0.0001716]
[1733899267318,0.89483006,97771.0,97770.0,0.0001716]
[1733899267879,0.89383006,97771.0,97770.0,0.0001716]
[1733899268088,0.89483006,97771.0,97770.0,0.0001716]
[1733899268304,0.7573927,97771.0,97770.0,0.0001716]
[1733899268944,0.89523078,97771.0,97770.0,0.0001716]
[1733899269411,0.89523911,97771.0,97770.0,0.0001716]
[1733899269632,0.89423911,97771.0,97770.0,0.0001716]
[1733899270123,0.89523911,97771.0,97770.0,0.0001716]
[1733899270334,0.75740103,97771.0,97770.0,0.0001716]
[1733899270558,0.75640103,97771.0,97770.0,0.0001716]
[1733899270788,0.75740103,97771.0,97770.0,0.0001716]
[1733899271199,0.75640103,97771.0,97770.0,0.0001716]
[1733899271624,1.09666035,97771.0,97770.0,0.0001716]
[1733899271832,0.75740103,97771.0,97770.0,0.0001716]
[1733899272033,0.86250432,97771.0,97770.0,0.0001716]
[1733899272231,1.20177655,97771.0,97770.0,0.0001716]
[1733899272682,1.49682571,97771.0,97770.0,0.0001716]
[1733899272890,1.6883255,97771.0,97770.0,0.0001716]
[1733899274384,1.6883255,97771.0,97769.0,0.00013472]
[1733899274385,0.84010147,97770.0,97769.0,0.00011445]
[1733899274588,1.43130202,97770.0,97769.0,0.00011445]
[1733899277465,1.43630202,97770.0,97769.0,0.00011445]
[1733899277680,1.47352311,97770.0,97769.0,4.5e-07]
[1733899277863,1.95315351,97770.0,97769.0,4.5e-07]
[1733899278575,1.78828938,97770.0,97769.0,4.5e-07]
[1733899278984,0.94060247,97751.0,97750.0,0.0001714]
[1733899279214,1.38519909,97751.0,97750.0,0.0001714]
[1733899279420,1.57855391,97751.0,97750.0,0.0001714]
[1733899280451,1.39477524,97751.0,97750.0,0.0001714]
[1733899280658,1.39477524,97751.0,97750.0,0.0011714]
[1733899281469,1.05550386,97751.0,97750.0,0.0031714]
[1733899282348,1.1836895,97751.0,97750.0,0.0031714]
[1733899282557,1.19325224,97751.0,97750.0,0.0031714]
[1733899283411,1.05549045,97751.0,97750.0,0.0031714]
[1733899285170,1.06589391,97751.0,97750.0,0.0031714]
[1733899285401,1.15769773,97751.0,97750.0,0.0031714]
[1733899286439,1.15764973,97751.0,97750.0,0.0031714]
[1733899287352,1.06584591,97751.0,97750.0,0.0031714]
[1733899287693,0.49571547,97722.0,97721.0,0.0753428]
[1733899287905,0.31405347,97722.0,97721.0,0.0753428]
[1733899288909,0.31412067,97722.0,97721.0,0.0793428]
[1733899289104,0.31412067,97722.0,97721.0,0.004]
[1733899289303,0.31412067,97722.0,97708.0,0.0498]
[1733899289304,0.432328,97721.0,97708.0,0.0498]
[1733899289513,0.15,97717.0,97708.0,0.0498]
[1733899290416,0.204676,97716.0,97708.0,0.0498]
[1733899290780,0.204676,97716.0,97709.0,0.0808]
[1733899291767,0.15,97717.0,97709.0,0.0808]
[1733899292173,0.14105347,97710.0,97709.0,0.0808]
[1733899292443,0.14105347,97710.0,97709.0,0.0848]
[1733899293066,0.14105347,97710.0,97709.0,0.0808]
[1733899293299,0.14105347,97710.0,97709.0,0.0858]
[1733899293701,0.14105347,97710.0,97709.0,0.0948]
[1733899294275,0.14105347,97710.0,97709.0,0.0858]
[1733899294681,0.14205347,97710.0,97709.0,0.0948]
[1733899298570,0.14196813,97710.0,97709.0,0.0948]
[1733899299256,0.14196813,97710.0,97709.0,0.20012524]
[1733899299257,0.001,97710.0,97709.0,0.20012524]
[1733899310813,0.001,97710.0,97709.0,0.39942524]
[1733899311013,0.001,97710.0,97709.0,0.54581386]
[1733899311214,0.001,97710.0,97709.0,0.63738504]
[1733899311412,0.001,97710.0,97709.0,0.40345711]
[1733899311641,0.0001716,97730.0,97721.0,0.329964]
[1733899311892,0.0001716,97730.0,97721.0,0.43528924]
[1733899313240,0.0001716,97730.0,97721.0,0.52692081]
[1733899314022,0.0001716,97730.0,97721.0,0.53292081]
[1733899316388,0.0001716,97730.0,97721.0,0.44128924]
[1733899316630,0.0001716,97730.0,97721.0,0.45028924]
[1733899317848,0.0001716,97730.0,97721.0,0.44857324]
[1733899318384,0.0001716,97730.0,97721.0,0.45908271]
[1733899318860,0.0001716,97730.0,97721.0,0.47934512]
[1733899322338,0.0001716,97730.0,97721.0,0.43004512]
[1733899322458,0.0001716,97730.0,97721.0,0.35404512]
[1733899322673,0.14096813,97728.0,97721.0,0.12032524]
[1733899323549,0.0816,97729.0,97721.0,0.12032524]
[1733899323550,0.14096813,97726.0,97721.0,0.12032524]
[1733899324008,0.14103533,97722.0,97721.0,0.015]
[1733899324646,0.14103533,97722.0,97721.0,0.009]
[1733899324868,0.14103533,97722.0,97721.0,0.014]
[1733899325744,0.14103533,97722.0,97721.0,0.005]
[1733899325960,0.29203533,97722.0,97721.0,0.014]
[1733899326404,0.29103533,97722.0,97711.0,0.2149216]
[1733899326628,0.29096813,97719.0,97712.0,0.10532524]
[1733899327058,0.14096813,97719.0,97712.0,0.10532524]
[1733899327496,0.29096813,97719.0,97712.0,0.10532524]
[1733899327709,0.14096813,97719.0,97712.0,0.10532524]
[1733899328367,0.14096813,97719.0,97712.0,0.11032524]
[1733899328830,0.14196813,97719.0,97712.0,0.11932524]
[1733899330323,0.14196813,97719.0,97713.0,0.204681]
[1733899330533,0.14196813,97719.0,97714.0,0.10532524]
[1733899331368,0.14196813,97719.0,97714.0,0.1051919]
[1733899332209,0.14096813,97719.0,97714.0,0.1051919]
[1733899332631,0.14196813,97719.0,97714.0,0.1051919]
[1733899332841,0.14096813,97719.0,97714.0,0.1051919]
[1733899333256,0.14196813,97719.0,97714.0,0.1141919]
[1733899333880,0.14196813,97719.0,97714.0,0.1191919]
[1733899335673,0.19036813,97719.0,97714.0,0.1191919]
[1733899335893,0.14096813,97715.0,97714.0,0.014]
[1733899336109,0.22136813,97715.0,97714.0,0.014]
[1733899336771,0.22136813,97715.0,97714.0,0.009]
[1733899336992,0.22136813,97715.0,97707.0,0.204693]
[1733899337208,0.22136813,97715.0,97714.0,0.015]
[1733899337427,0.22236813,97715.0,97714.0,0.015]
[1733899337646,0.22236813,97715.0,97714.0,0.009]
[1733899337866,0.22236813,97715.0,97714.0,0.015]
[1733899340508,0.001,97715.0,97714.0,0.12032524]
[1733899345387,0.001,97715.0,97714.0,0.13061549]
[1733899355661,0.00086825,97715.0,97714.0,0.13061549]
[1733899360310,0.00086825,97715.0,97714.0,0.49573135]
[1733899360573,0.00086825,97715.0,97714.0,0.35811549]
[1733899362552,0.00086825,97715.0,97714.0,0.35211549]
[1733899362767,0.0001716,97720.0,97714.0,0.35211549]
[1733899362768,0.0001716,97720.0,97714.0,0.34811549]
[1733899362982,0.0001716,97720.0,97719.0,0.51276142]
[1733899364336,0.0001716,97720.0,97719.0,0.52976142]
[1733899365541,0.0001716,97720.0,97719.0,0.67176142]
[1733899365948,6e-07,97720.0,97719.0,0.67979329]
[1733899366145,6e-07,97720.0,97719.0,1.03214662]
[1733899366398,6e-07,97720.0,97719.0,0.74919329]
[1733899366546,6e-07,97720.0,97719.0,0.75819329]
[1733899366748,6e-07,97720.0,97719.0,1.03314662]
[1733899367237,6e-07,97720.0,97719.0,0.76719329]
[1733899368062,6e-07,97720.0,97719.0,0.78722947]
[1733899368322,6e-07,97720.0,97719.0,0.7781976]
[1733899368471,6e-07,97720.0,97719.0,0.78722947]
[1733899369685,6e-07,97720.0,97719.0,0.70982947]
[1733899373363,0.15,97747.0,97719.0,0.70982947]
[1733899373577,0.173,97783.0,97749.0,0.15]
[1733899373800,0.204583,97760.0,97749.0,0.354604]
[1733899374004,0.023,97759.0,97749.0,0.354604]
[1733899374467,0.023,97765.0,97749.0,0.354604]
[1733899374852,0.02316451,97765.0,97749.0,0.354604]
[1733899375292,0.02316451,97765.0,97749.0,0.355604]
[1733899375940,0.02316451,97765.0,97749.0,0.354604]
[1733899376152,0.02316451,97765.0,97749.0,0.504604]
[1733899376368,0.02316451,97765.0,97750.0,0.15]
[1733899376572,0.1252,97764.0,97751.0,0.204601]
[1733899376775,0.023,97763.0,97751.0,0.204601]
[1733899377608,0.023,97763.0,97756.0,0.20459]
[1733899381027,0.023,97763.0,97755.0,0.15]
[1733899383657,0.023,97763.0,97756.0,0.204591]
[1733899384960,0.023,97763.0,97756.0,0.206591]
[1733899385371,0.023,97763.0,97756.0,0.208591]
[1733899385575,0.023,97763.0,97756.0,0.204591]
[1733899385779,0.023,97763.0,97756.0,0.206591]
[1733899385958,0.023,97763.0,97756.0,0.212591]
[1733899386196,0.023,97763.0,97756.0,0.008]
[1733899387837,0.023,97763.0,97757.0,0.204588]
[1733899389127,0.023,97763.0,97757.0,0.212588]
[1733899389537,0.1252,97764.0,97757.0,0.008]
[1733899389538,0.023,97761.0,97757.0,0.008]
[1733899390553,0.023,97759.0,97757.0,0.006]
[1733899390766,0.1492,97759.0,97757.0,0.006]
[1733899390992,0.1039,97758.0,97757.0,0.003]
[1733899391201,0.1039,97758.0,97757.0,0.01]
[1733899391415,0.1039,97758.0,97749.0,0.15]
[1733899391614,0.023,97757.0,97749.0,0.15]
[1733899392492,0.023,97757.0,97750.0,0.0001716]
[1733899394083,0.023,97757.0,97750.0,0.0011716]
[1733899394783,0.023,97757.0,97750.0,0.0031716]
[1733899394950,0.023,97757.0,97750.0,0.0041716]
[1733899395813,0.023,97755.0,97750.0,0.0041716]
[1733899396011,0.023,97753.0,97750.0,0.0011716]
[1733899396218,0.023,97753.0,97750.0,0.0001716]
[1733899396673,0.023,97753.0,97750.0,0.0011716]
[1733899397116,0.023,97753.0,97750.0,0.0001716]
[1733899397315,0.173,97801.0,97800.0,0.38834031]
[1733899397467,0.173,97801.0,97800.0,0.16024031]
[1733899397468,0.3102863,97801.0,97800.0,0.16024031]
[1733899398094,0.43465045,97801.0,97800.0,0.05799031]
[1733899398574,0.64214635,97801.0,97800.0,0.05799031]
[1733899398725,0.64231079,97801.0,97800.0,0.05899031]
[1733899399128,0.64231079,97801.0,97800.0,3.1e-07]
[1733899400743,0.204581,97761.0,97750.0,0.0001716]
[1733899401324,0.204581,97761.0,97750.0,0.1501716]
[1733899401734,0.204581,97761.0,97750.0,0.0001716]
[1733899401935,0.204581,97761.0,97750.0,0.00272022]
[1733899402410,0.204581,97761.0,97750.0,0.15272022]
[1733899403454,0.204581,97761.0,97750.0,0.00272022]
[1733899403655,0.02044409,97786.0,97750.0,0.00272022]
[1733899403656,0.023,97779.0,97750.0,0.00272022]
[1733899403866,0.02044409,97786.0,97750.0,0.00272022]
[1733899403867,0.173,97777.0,97750.0,0.00272022]
[1733899404081,0.204599,97752.0,97750.0,0.00272022]
[1733899404486,0.00959053,97751.0,97750.0,0.00272022]
[1733899404734,0.00959053,97751.0,97750.0,0.00072022]
[1733899405768,0.00959053,97751.0,97750.0,0.00572022]
[1733899407330,0.00959053,97751.0,97750.0,0.01172022]
[1733899410338,0.02245153,97751.0,97750.0,0.01172022]
[1733899412816,0.00959053,97751.0,97750.0,0.01172022]
[1733899413416,0.00959053,97751.0,97750.0,0.43532022]
[1733899413813,0.0095844,97751.0,97750.0,0.35842022]
[1733899414020,0.0095844,97751.0,97750.0,0.43532022]
[1733899416863,0.0095844,97751.0,97750.0,0.52710331]
[1733899418350,0.0095844,97751.0,97750.0,0.52707639]
[1733899419734,0.0095844,97751.0,97750.0,0.13532022]
[1733899419964,0.0095844,97751.0,97750.0,0.08862022]
[1733899420342,0.00958713,97751.0,97750.0,0.08862022]
[1733899421194,0.00958713,97751.0,97750.0,0.07962022]
[1733899421401,0.00958713,97751.0,97750.0,0.08262022]
[1733899421816,0.00958713,97751.0,97750.0,0.07762022]
[1733899422024,0.00958713,97751.0,97750.0,0.08162022]
[1733899422439,0.00958713,97751.0,97750.0,0.07862022]
[1733899422586,0.00958713,97751.0,97750.0,0.08162022]
[1733899422789,0.00958713,97751.0,97750.0,0.08262022]
[1733899423382,0.09202007,97772.0,97751.0,0.15]
[1733899423383,0.023,97771.0,97751.0,0.15]
[1733899423611,0.023,97769.0,97752.0,0.1236]
[1733899423808,0.023,97767.0,97752.0,0.1236]
[1733899424060,0.2141519,97768.0,97753.0,0.0769]
[1733899424061,0.023,97765.0,97753.0,0.0769]
[1733899424308,0.0095869,97764.0,97753.0,0.15]
[1733899424511,0.0095869,97763.0,97754.0,0.0769]
[1733899424732,0.0095869,97762.0,97754.0,0.0769]
[1733899424990,0.0095869,97761.0,97754.0,0.0769]
[1733899425189,0.0095869,97760.0,97754.0,0.0769]
[1733899425411,0.0095869,97759.0,97754.0,0.0769]
[1733899425624,0.0095869,97758.0,97754.0,0.0769]
[1733899425833,0.0095869,97757.0,97754.0,0.0769]
[1733899426041,0.0095869,97756.0,97754.0,0.0769]
[1733899426246,0.0095869,97755.0,97754.0,0.0769]
[1733899426662,0.0095869,97755.0,97754.0,0.0779]
[1733899427696,0.0095869,97755.0,97754.0,0.0819]
[1733899428105,0.0095869,97755.0,97754.0,0.0779]
[1733899428322,0.0095869,97755.0,97754.0,0.0829]
[1733899428739,0.0095869,97755.0,97754.0,0.2349]
[1733899430248,0.0095869,97755.0,97754.0,0.2329]
[1733899431086,0.0095869,97755.0,97754.0,0.2269]
[1733899431309,0.0095869,97755.0,97754.0,0.2309]
[1733899431716,0.0095869,97755.0,97754.0,0.2269]
[1733899431922,0.0095869,97755.0,97754.0,0.2309]
[1733899432137,0.0095869,97755.0,97754.0,0.2329]
[1733899432553,0.0095869,97755.0,97754.0,0.2309]
[1733899432754,0.0095869,97755.0,97754.0,0.2269]
[1733899432928,0.0095869,97755.0,97754.0,0.2279]
[1733899433389,0.0095869,97755.0,97754.0,0.2269]
[1733899433575,0.0095869,97755.0,97754.0,0.2279]
[1733899434272,0.0095869,97755.0,97754.0,0.2319]
[1733899434715,0.204581,97761.0,97755.0,0.15]
[1733899434958,0.00958549,97760.0,97755.0,0.15]
[1733899435176,0.00958549,97759.0,97755.0,0.15]
[1733899435398,0.00958549,97758.0,97755.0,0.15]
[1733899435618,0.00958549,97757.0,97755.0,0.15]
[1733899435867,0.00958549,97756.0,97755.0,0.15]
[1733899436558,0.0128799,97764.0,97756.0,0.15]
[1733899436760,0.00958583,97763.0,97756.0,0.15]
[1733899436966,0.00958583,97762.0,97756.0,0.15]
[1733899437170,0.00958583,97761.0,97754.0,0.0769]
[1733899437377,0.00958583,97760.0,97756.0,0.15]
[1733899437766,0.00958583,97759.0,97756.0,0.15]
[1733899437913,0.00958583,97758.0,97757.0,0.15]
[1733899438896,0.00958583,97758.0,97755.0,0.001]
[1733899439098,0.24035936,97765.0,97750.0,0.09247053]
[1733899439099,0.204601,97751.0,97750.0,0.09247053]
[1733899439319,0.21418683,97751.0,97750.0,0.00072022]
[1733899439728,0.204601,97751.0,97750.0,0.00072022]
[1733899439932,0.21418876,97751.0,97750.0,0.00072022]
[1733899440344,0.21418876,97751.0,97750.0,0.00172022]
[1733899440999,0.21418876,97751.0,97750.0,0.00472022]
[1733899441222,0.21418876,97751.0,97750.0,0.00372022]
[1733899441409,0.21418876,97751.0,97750.0,0.00072022]
[1733899441610,0.21418876,97751.0,97750.0,0.00272022]
[1733899441987,0.204601,97751.0,97750.0,0.00272022]
[1733899442186,0.21418789,97751.0,97750.0,0.00272022]
[1733899442510,0.21418789,97751.0,97750.0,0.00372022]
[1733899442956,0.21418789,97751.0,97750.0,0.00272022]
[1733899443364,0.00958689,97751.0,97750.0,0.00372022]
[1733899445176,0.00958441,97751.0,97750.0,0.00372022]
[1733899446463,0.03258441,97751.0,97750.0,0.00372022]
[1733899447208,0.03258441,97751.0,97750.0,0.00272022]
[1733899447405,0.04519353,97751.0,97750.0,0.00072022]
[1733899447811,0.04519353,97751.0,97750.0,0.00272022]
[1733899448623,0.04519353,97751.0,97750.0,0.00072022]
[1733899449568,0.04619353,97751.0,97750.0,0.00072022]
[1733899450711,0.04719353,97751.0,97750.0,0.00072022]
[1733899451487,0.04619353,97751.0,97750.0,0.00072022]
[1733899452087,0.04719353,97751.0,97750.0,0.00072022]
[1733899453491,0.04619353,97751.0,97750.0,0.00072022]
[1733899454119,0.04719353,97751.0,97750.0,0.00072022]
[1733899454339,0.02419353,97751.0,97750.0,0.08322022]
[1733899454550,0.01158441,97751.0,97750.0,0.08322022]
[1733899454968,0.01058441,97751.0,97750.0,0.08322022]
[1733899455816,0.03358441,97751.0,97750.0,0.08322022]
[1733899457408,0.03258441,97751.0,97750.0,0.08322022]
[1733899457824,0.03258441,97751.0,97750.0,0.08422022]
[1733899458248,0.03258441,97751.0,97750.0,0.08322022]
[1733899458455,0.03258441,97751.0,97750.0,0.08422022]
[1733899458858,0.03258441,97751.0,97750.0,0.08322022]
[1733899459057,0.03258441,97751.0,97750.0,0.08422022]
[1733899459411,0.03258441,97751.0,97750.0,0.08322022]
[1733899460862,0.03258441,97751.0,97750.0,0.08422022]
[1733899461065,0.03258441,97751.0,97750.0,0.08322022]
[1733899461514,0.03258441,97751.0,97750.0,0.08422022]
[1733899471246,0.023,97751.0,97750.0,0.08422022]
[1733899471449,0.03258242,97751.0,97750.0,0.08422022]
[1733899474554,0.03258325,97751.0,97750.0,0.08422022]
[1733899482297,0.03712135,97751.0,97750.0,0.08422022]
[1733899484249,0.0275381,97751.0,97750.0,0.08422022]
[1733899484472,0.03713119,97751.0,97750.0,0.08422022]
[1733899487382,0.03713185,97751.0,97750.0,0.08422022]
[1733899490583,0.0275381,97751.0,97750.0,0.08422022]
[1733899490781,0.03713293,97751.0,97750.0,0.08422022]
[1733899494886,0.03713566,97751.0,97750.0,0.08422022]
[1733899497412,0.07347228,97751.0,97750.0,0.08422022]
[1733899497617,0.03713567,97751.0,97750.0,0.00172022]
[1733899499123,0.03713567,97751.0,97750.0,0.00072022]
[1733899499700,0.03713567,97751.0,97750.0,0.00172022]
[1733899500774,0.14246091,97751.0,97750.0,0.00072022]
[1733899500980,0.17444356,97751.0,97750.0,0.00072022]
[1733899501195,0.31253949,97751.0,97750.0,0.00072022]
[1733899501401,0.17444356,97751.0,97750.0,0.00072022]
[1733899501612,0.20012369,97751.0,97750.0,0.00072022]
[1733899501819,0.33827723,97751.0,97750.0,0.00072022]
[1733899502028,0.204628,97738.0,97737.0,0.0818]
[1733899502237,0.40735685,97738.0,97737.0,0.0818]
[1733899502462,0.40735685,97738.0,97730.0,0.0818]
[1733899502463,0.204641,97732.0,97730.0,0.0818]
[1733899502675,0.03259757,97731.0,97730.0,0.0818]
[1733899503123,0.03708261,97731.0,97730.0,0.0818]
[1733899504204,0.03708261,97731.0,97730.0,0.0878]
[1733899505234,0.03708261,97731.0,97730.0,0.0898]
[1733899505653,0.03708261,97731.0,97730.0,0.0818]
[1733899505864,0.03808261,97731.0,97730.0,0.0818]
[1733899506076,0.03908261,97731.0,97730.0,0.0818]
[1733899506307,0.03808261,97731.0,97730.0,0.0818]
[1733899506517,0.03908261,97731.0,97730.0,0.0818]
[1733899507297,0.03808261,97731.0,97730.0,0.0818]
[1733899507698,0.05069699,97731.0,97730.0,0.0818]
[1733899507899,0.04969699,97731.0,97730.0,0.0818]
[1733899508112,0.05069699,97731.0,97730.0,0.0818]
[1733899508735,0.04969699,97731.0,97730.0,0.0818]
[1733899508984,0.05069699,97731.0,97730.0,0.0818]
[1733899509205,0.05066911,97731.0,97730.0,0.0818]
[1733899509412,0.04966911,97731.0,97730.0,0.0818]
[1733899509778,0.05066911,97731.0,97730.0,0.0818]
[1733899510005,0.05166911,97731.0,97730.0,0.0818]
[1733899510206,0.05066911,97731.0,97730.0,0.0818]
[1733899510620,0.05166911,97731.0,97730.0,0.0818]
[1733899511062,0.05066911,97731.0,97730.0,0.0818]
[1733899511264,0.05166911,97731.0,97730.0,0.0818]
[1733899511858,0.05066911,97731.0,97730.0,0.0818]
[1733899512446,0.0506676,97731.0,97730.0,0.0818]
[1733899512652,0.0496676,97731.0,97730.0,0.0818]
[1733899512854,0.0516676,97731.0,97730.0,0.0818]
[1733899513622,0.0506676,97731.0,97730.0,0.0818]
[1733899514028,0.03805322,97731.0,97730.0,0.0818]
[1733899514691,0.03705322,97731.0,97730.0,0.0818]
[1733899514815,0.03705322,97731.0,97730.0,0.0819716]
[1733899515015,0.03805322,97731.0,97730.0,0.0819716]
[1733899515439,0.03705322,97731.0,97730.0,0.0819716]
[1733899515647,0.03705322,97731.0,97730.0,0.0829716]
[1733899515860,0.03705322,97731.0,97730.0,0.0819716]
[1733899516284,0.03705322,97731.0,97730.0,0.0839716]
[1733899517173,0.01405322,97731.0,97730.0,0.0839716]
[1733899517375,0.03705322,97731.0,97730.0,0.0839716]
[1733899517531,0.03256818,97731.0,97730.0,0.0839716]
[1733899518119,0.00956818,97731.0,97730.0,0.2832716]
[1733899518346,0.00956818,97731.0,97730.0,0.4332716]
[1733899518549,0.204601,97752.0,97730.0,0.3021716]
[1733899518550,0.01260444,97745.0,97730.0,0.3021716]
[1733899518703,0.00956872,97744.0,97732.0,0.1271]
[1733899518915,0.00956872,97743.0,97736.0,0.15]
[1733899519113,0.00956872,97743.0,97737.0,0.1271]
[1733899519313,0.204601,97752.0,97737.0,0.1271]
[1733899519314,0.15,97753.0,97738.0,0.0778]
[1733899519552,0.0095687,97742.0,97739.0,0.0778]
[1733899519750,0.023,97741.0,97739.0,0.0778]
[1733899520183,0.227622,97741.0,97739.0,0.0778]
[1733899520416,0.0370405,97740.0,97739.0,0.0778]
[1733899522409,0.2416645,97740.0,97739.0,0.0778]
[1733899523029,0.2416645,97740.0,97739.0,0.0788]
[1733899523260,0.2416645,97740.0,97739.0,0.0778]
[1733899523453,0.2426645,97740.0,97739.0,0.0778]
[1733899523658,0.2426645,97740.0,97737.0,0.0493]
[1733899523659,0.204628,97738.0,97737.0,0.0493]
[1733899523860,0.204628,97738.0,97733.0,0.0778]
[1733899523861,0.204634,97735.0,97733.0,0.0778]
[1733899524231,0.03705293,97734.0,97733.0,0.0778]
[1733899525235,0.03705985,97734.0,97733.0,0.0778]
[1733899526179,0.03705985,97734.0,97733.0,0.0788]
[1733899526632,0.03705985,97734.0,97733.0,0.0808]
[1733899526835,0.03705985,97734.0,97733.0,0.0788]
[1733899527827,0.03705985,97734.0,97733.0,0.0778]
[1733899528537,0.03706585,97734.0,97733.0,0.0778]
[1733899532090,0.03706768,97734.0,97733.0,0.0778]
[1733899533163,0.02748423,97734.0,97733.0,0.0778]
[1733899534159,0.02848423,97734.0,97733.0,0.0778]
[1733899534761,0.02748423,97734.0,97733.0,0.0778]
[1733899535009,0.02848423,97734.0,97733.0,0.0778]
[1733899535224,0.03806951,97734.0,97733.0,0.0778]
[1733899535433,0.03706951,97734.0,97733.0,0.0778]
[1733899535861,0.03906951,97734.0,97733.0,0.0778]
[1733899536070,0.02948423,97734.0,97733.0,0.0778]
[1733899536749,0.02848423,97734.0,97733.0,0.0778]
[1733899536960,0.02748423,97734.0,97733.0,0.0778]
[1733899537217,0.02848423,97734.0,97733.0,0.0778]
[1733899537845,0.02748423,97734.0,97733.0,0.0778]
[1733899538084,0.02848423,97734.0,97733.0,0.0778]
[1733899538724,0.02748423,97734.0,97733.0,0.0778]
[1733899543772,0.02848423,97734.0,97733.0,0.0778]
[1733899543979,0.02748423,97734.0,97733.0,0.0778]
[1733899544452,0.0272225,97734.0,97733.0,0.0778]
[1733899546156,0.02273827,97734.0,97733.0,0.0778]
[1733899549228,0.023,97732.0,97730.0,0.0001716]
[1733899549782,0.204639,97733.0,97730.0,0.0001716]
[1733899549783,0.2321347,97731.0,97730.0,0.0001716]
[1733899550212,0.33745994,97731.0,97730.0,0.0001716]
[1733899550650,0.50748029,97731.0,97730.0,0.0001716]
[1733899550858,0.36492916,97731.0,97730.0,0.0001716]
[1733899551067,0.5490084,97731.0,97730.0,0.0001716]
[1733899551500,0.47103245,97731.0,97730.0,0.0001716]
[1733899552161,0.36592916,97731.0,97730.0,0.0001716]
[1733899552393,0.50394892,97731.0,97730.0,0.0001716]
[1733899552607,0.36592916,97731.0,97730.0,0.0001716]
[1733899553043,0.50394763,97731.0,97730.0,0.0001716]